bitfinex/quotes_SOLUSD_20241126
["timestamp","ask_amount","ask_price","bid_price","bid_amount"]
[1732657582859,19.99494038,230.15,230.09,19.99494038]
[1732657582860,0.1,230.15,230.09,19.99494038]
[1732657583072,0.1,230.15,230.1,19.99494038]
[1732657583239,38.72754038,230.17,230.1,19.99494038]
[1732657583446,19.99494038,230.15,230.07,19.99494038]
[1732657583659,19.99494038,230.13,230.06,19.99494038]
[1732657583959,20.09494038,230.16,230.08,19.99494038]
[1732657584352,20.09494038,230.16,230.03,4.3472]
[1732657584353,20.09494038,230.2,230.13,19.99494038]
[1732657584544,2.272,230.21,230.14,19.99494038]
[1732657584839,19.99494038,230.2,230.12,19.99494038]
[1732657585045,20.09494038,230.2,230.12,19.99494038]
[1732657585447,10.4287,230.26,230.19,19.99494038]
[1732657585448,20.09494038,230.26,230.19,19.99494038]
[1732657585679,0.1,230.28,230.24,19.99494038]
[1732657585968,24.16798109,230.32,230.27,19.99494038]
[1732657585969,9.77858109,230.32,230.27,19.99494038]
[1732657586226,7.60768109,230.32,230.28,19.99494038]
[1732657586469,7.60768109,230.32,230.27,19.99494038]
[1732657586667,7.60768109,230.32,230.28,19.99494038]
[1732657587449,7.60768109,230.32,230.29,19.99494038]
[1732657587760,7.60768109,230.32,230.31,19.99494038]
[1732657588145,7.60768109,230.32,230.28,19.99494038]
[1732657588955,7.60768109,230.32,230.25,19.99494038]
[1732657589851,7.60768109,230.32,230.26,19.99494038]
[1732657590060,7.60768109,230.32,230.28,19.99494038]
[1732657590387,7.60768109,230.32,230.31,19.99494038]
[1732657590666,7.60768109,230.32,230.31,43.77182438]
[1732657590876,23.0568,230.49,230.31,43.77182438]
[1732657590877,0.1,230.48,230.32,23.776884]
[1732657591047,2.1693,230.49,230.43,19.99494038]
[1732657591242,2.1693,230.49,230.38,19.99494038]
[1732657591243,19.99494038,230.45,230.38,19.99494038]
[1732657591443,19.99494038,230.44,230.36,19.99494038]
[1732657591650,7.60350749,230.48,230.36,19.99494038]
[1732657591651,19.99494038,230.43,230.36,19.99494038]
[1732657591852,19.99494038,230.43,230.31,23.776884]
[1732657591853,19.99494038,230.42,230.35,19.99494038]
[1732657592072,19.99494038,230.39,230.32,19.99494038]
[1732657592259,19.99494038,230.42,230.35,19.99494038]
[1732657592483,19.99494038,230.45,230.38,19.99494038]
[1732657592649,19.99494038,230.45,230.37,19.99494038]
[1732657592850,19.99494038,230.46,230.39,19.99494038]
[1732657593172,19.99494038,230.46,230.29,9.99998931]
[1732657593173,19.99494038,230.46,230.38,19.99494038]
[1732657593351,22.26434038,230.47,230.39,19.99494038]
[1732657593757,22.26434038,230.47,230.4,19.99494038]
[1732657593966,22.26434038,230.47,230.39,19.99494038]
[1732657594688,19.99494038,230.46,230.39,19.99494038]
[1732657594979,2.2694,230.47,230.36,19.99494038]
[1732657594980,19.99494038,230.44,230.36,19.99494038]
[1732657595180,19.99494038,230.44,230.31,4.3419]
[1732657595181,19.99494038,230.41,230.34,19.99494038]
[1732657595586,19.99494038,230.42,230.34,19.99494038]
[1732657595883,19.99494038,230.43,230.35,19.99494038]
[1732657596087,19.99494038,230.42,230.35,19.99494038]
[1732657596567,22.16474038,230.43,230.35,19.99494038]
[1732657596767,19.99494038,230.44,230.36,19.99494038]
[1732657596969,19.99494038,230.43,230.36,19.99494038]
[1732657597266,29.76784787,230.48,230.4,19.99494038]
[1732657598196,19.99494038,230.45,230.37,19.99494038]
[1732657598381,22.16454038,230.45,230.38,19.99494038]
[1732657598685,19.99494038,230.45,230.39,19.99494038]
[1732657598985,19.99494038,230.45,230.37,19.99494038]
[1732657599188,0.1,230.46,230.39,19.99494038]
[1732657600977,19.99494038,230.45,230.37,19.99494038]
[1732657601163,19.99494038,230.45,230.37,24.33564038]
[1732657601373,0.1,230.46,230.39,19.99494038]
[1732657602388,19.99494038,230.45,230.37,24.33564038]
[1732657602978,19.99494038,230.43,230.35,24.33604038]
[1732657603183,19.99494038,230.39,230.31,19.99494038]
[1732657603383,19.99494038,230.37,230.29,19.99494038]
[1732657603587,19.99494038,230.37,230.29,24.33704038]
[1732657604194,19.99494038,230.39,230.32,19.99494038]
[1732657604390,22.16514038,230.4,230.32,19.99494038]
[1732657604695,19.99494038,230.39,230.31,19.99494038]
[1732657605012,19.99494038,230.39,230.28,4.3425]
[1732657605013,19.99494038,230.39,230.32,19.99494038]
[1732657605207,19.99494038,230.37,230.29,19.99494038]
[1732657605493,19.99494038,230.35,230.27,24.33744038]
[1732657606392,19.99494038,230.33,230.26,19.99494038]
[1732657607288,19.99494038,230.32,230.24,19.99494038]
[1732657607598,19.99494038,230.31,230.23,19.99494038]
[1732657607896,19.99494038,230.29,230.22,19.99494038]
[1732657608101,19.99494038,230.3,230.23,19.99494038]
[1732657608282,19.99494038,230.29,230.22,19.99494038]
[1732657608478,19.99494038,230.3,230.23,19.99494038]
[1732657609098,19.99494038,230.29,230.22,24.33854038]
[1732657611187,22.16594038,230.3,230.22,24.33854038]
[1732657611382,22.16594038,230.3,230.23,19.99494038]
[1732657612076,19.99494038,230.31,230.23,19.99494038]
[1732657612773,20.09494038,230.31,230.23,19.99494038]
[1732657612972,22.16594038,230.3,230.23,19.99494038]
[1732657613997,20.0,230.31,230.27,19.99494038]
[1732657614198,20.0,230.31,230.29,19.99494038]
[1732657614802,20.0,230.33,230.28,19.99494038]
[1732657614979,19.99494038,230.35,230.27,19.99494038]
[1732657614980,20.0,230.32,230.27,19.99494038]
[1732657615185,20.0,230.31,230.26,19.99494038]
[1732657616088,20.0,230.31,230.25,19.99494038]
[1732657616314,19.99494038,230.29,230.22,19.99494038]
[1732657616610,19.99494038,230.28,230.2,19.99494038]
[1732657616993,19.99494038,230.27,230.2,19.99494038]
[1732657617525,19.99494038,230.27,230.2,24.33884038]
[1732657617807,22.16624038,230.27,230.2,19.99494038]
[1732657618215,2.1712,230.29,230.22,19.99494038]
[1732657618793,2.1712,230.29,230.23,19.99494038]
[1732657619320,19.99494038,230.24,230.16,19.99494038]
[1732657619615,22.16654038,230.24,230.17,19.99494038]
[1732657619794,20.0,230.23,230.22,19.99494038]
[1732657619998,0.1,230.3,230.22,19.99494038]
[1732657620216,0.1,230.3,230.14,4.3451]
[1732657620217,2.1707,230.34,230.29,19.99494038]
[1732657620401,19.99494038,230.3,230.23,19.99494038]
[1732657620597,19.99494038,230.29,230.21,19.99494038]
[1732657620796,19.99494038,230.28,230.2,19.99494038]
[1732657620996,19.99494038,230.32,230.25,19.99494038]
[1732657621216,19.99494038,230.31,230.24,19.99494038]
[1732657621401,7.5974,230.34,230.26,19.99494038]
[1732657621402,22.26564038,230.34,230.26,19.99494038]
[1732657621598,19.99494038,230.3,230.23,19.99494038]
[1732657621809,0.1,230.32,230.26,19.99494038]
[1732657622004,0.1,230.32,230.29,19.99494038]
[1732657622207,2.2706,230.35,230.29,19.99494038]
[1732657622414,19.99494038,230.34,230.26,19.99494038]
[1732657622622,19.99494038,230.31,230.24,19.99494038]
[1732657622819,19.99494038,230.29,230.21,19.99494038]
[1732657623006,19.99494038,230.27,230.2,19.99494038]
[1732657623210,19.99494038,230.27,230.13,15.0676]
[1732657623211,19.99494038,230.25,230.18,19.99494038]
[1732657623401,19.99494038,230.26,230.19,19.99494038]
[1732657623599,22.16644038,230.26,230.19,19.99494038]
[1732657624131,19.99494038,230.22,230.15,19.99494038]
[1732657624335,19.99494038,230.21,230.14,24.34004038]
[1732657624629,19.99494038,230.22,230.14,24.34004038]
[1732657625012,19.99494038,230.22,230.14,19.99494038]
[1732657625331,19.99494038,230.21,230.13,19.99494038]
[1732657625541,19.99494038,230.21,230.14,24.34004038]
[1732657626327,39.99494038,230.18,230.11,19.99494038]
[1732657626520,20.0,230.18,230.12,19.99494038]
[1732657627030,20.0,230.2,230.17,19.99494038]
[1732657627234,20.0,230.21,230.17,19.99494038]
[1732657627557,20.0,230.21,230.15,19.99494038]
[1732657627739,20.0,230.2,230.16,19.99494038]
[1732657628032,20.0,230.2,230.17,19.99494038]
[1732657628221,20.09494038,230.24,230.17,19.99494038]
[1732657628222,20.0,230.21,230.17,19.99494038]
[1732657628531,20.0,230.21,230.16,19.99494038]
[1732657629608,42.16684038,230.21,230.12,4.3455]
[1732657629910,42.16684038,230.21,230.14,19.99494038]
[1732657631041,19.99494038,230.19,230.12,19.99494038]
[1732657631364,22.1719,230.21,230.08,0.92034166]
[1732657631365,19.99494038,230.15,230.08,0.92034166]
[1732657631657,0.1,230.17,230.13,19.99494038]
[1732657631953,0.1,230.17,230.14,19.99494038]
[1732657631954,20.0,230.17,230.14,19.99494038]
[1732657632153,20.0,230.17,230.13,19.99494038]
[1732657632549,39.99494038,230.17,230.1,19.99494038]
[1732657632755,20.0,230.17,230.11,19.99494038]
[1732657632945,22.1723,230.17,230.11,19.99494038]
[1732657633553,19.99494038,230.15,230.08,0.92034166]
[1732657633739,42.16724038,230.17,230.1,19.99494038]
[1732657634062,19.99494038,230.14,230.08,0.92034166]
[1732657634740,19.99494038,230.15,230.08,20.91528204]
[1732657635136,19.99494038,230.13,230.08,0.92034166]
[1732657636241,0.1,230.09,230.08,0.92034166]
[1732657636748,19.99494038,230.1,230.02,19.99494038]
[1732657637060,0.1,230.09,229.95,6.1278]
[1732657637357,0.1,230.09,229.94,19.99494038]
[1732657637358,19.99494038,230.01,229.94,19.99494038]
[1732657637754,19.99494038,230.03,229.96,19.99494038]
[1732657638058,19.99494038,230.07,230.0,19.99494038]
[1732657638362,20.0,230.07,230.03,19.99494038]
[1732657638568,0.1,230.11,230.05,19.99494038]
[1732657638737,17.9282,230.12,230.06,19.99494038]
[1732657638949,19.99494038,230.11,230.04,19.99494038]
[1732657639166,19.99494038,230.1,230.03,19.99494038]
[1732657639977,19.99494038,230.09,230.02,19.99494038]
[1732657640276,19.99494038,230.08,230.01,19.99494038]
[1732657640654,20.09494038,230.09,230.02,19.99494038]
[1732657640855,20.0,230.06,230.03,19.99494038]
[1732657641264,0.1,230.1,230.05,19.99494038]
[1732657641467,15.7554,230.12,230.06,19.99494038]
[1732657642084,15.7554,230.12,230.07,19.99494038]
[1732657642551,15.7554,230.12,230.06,19.99494038]
[1732657642953,15.7554,230.12,230.07,19.99494038]
[1732657643155,0.1,230.14,230.09,19.99494038]
[1732657643364,15.7436,230.18,230.12,19.99494038]
[1732657643577,15.7436,230.18,230.11,19.99494038]
[1732657643578,0.1,230.17,230.11,19.99494038]
[1732657643770,15.7436,230.18,230.13,19.99494038]
[1732657644169,15.7436,230.18,230.12,19.99494038]
[1732657644354,0.1,230.22,230.17,19.99494038]
[1732657644559,15.7436,230.24,230.2,19.99494038]
[1732657644972,15.7436,230.24,230.18,19.99494038]
[1732657645466,2.1714,230.26,230.19,19.99494038]
[1732657645663,19.99494038,230.25,230.18,19.99494038]
[1732657645978,2.1714,230.26,230.19,19.99494038]
[1732657646180,2.2714,230.26,230.19,19.99494038]
[1732657646384,19.99494038,230.25,230.17,19.99494038]
[1732657646681,2.1716,230.25,230.18,19.99494038]
[1732657646880,22.16654038,230.25,230.17,19.99494038]
[1732657647261,20.0,230.24,230.19,19.99494038]
[1732657647482,20.0,230.24,230.2,19.99494038]
[1732657647670,15.7436,230.29,230.23,19.99494038]
[1732657647857,15.7436,230.29,230.25,19.99494038]
[1732657648255,15.7436,230.29,230.23,19.99494038]
[1732657648478,17.9147,230.29,230.23,19.99494038]
[1732657648686,15.7436,230.29,230.23,19.99494038]
[1732657649284,17.9147,230.29,230.23,19.99494038]
[1732657649587,0.1,230.32,230.27,19.99494038]
[1732657649796,20.0,230.32,230.28,19.99494038]
[1732657650163,2.2706,230.35,230.29,19.99494038]
[1732657650677,10.33247901,230.46,230.23,19.99494038]
[1732657650678,2.1702,230.39,230.32,19.99494038]
[1732657650987,2.1702,230.39,230.24,10.471]
[1732657650988,0.1,230.42,230.36,19.99494038]
[1732657651202,2.1695,230.46,230.4,19.99494038]
[1732657651497,3.20153865,230.45,230.4,19.99494038]
[1732657651658,19.99494038,230.45,230.38,19.99494038]
[1732657651988,19.99494038,230.4,230.33,19.99494038]
[1732657652287,19.99494038,230.38,230.3,19.99494038]
[1732657652491,19.99494038,230.36,230.29,19.99494038]
[1732657652788,19.99494038,230.36,230.28,19.99494038]
[1732657653193,2.1705,230.36,230.25,4.3431]
[1732657653360,19.99494038,230.34,230.27,19.99494038]
[1732657653678,19.99494038,230.35,230.27,19.99494038]
[1732657654274,19.99494038,230.35,230.27,24.33754038]
[1732657654867,22.16544038,230.36,230.28,19.99494038]
[1732657655092,0.1,230.38,230.33,19.99494038]
[1732657655386,0.1,230.38,230.36,19.99494038]
[1732657655594,22.16484038,230.43,230.36,19.99494038]
[1732657655796,19.99494038,230.39,230.31,19.99494038]
[1732657655968,19.99494038,230.39,230.32,19.99494038]
[1732657656168,19.99494038,230.4,230.33,19.99494038]
[1732657656483,22.16514038,230.4,230.33,19.99494038]
[1732657658201,19.99494038,230.41,230.34,19.99494038]
[1732657658492,2.1699,230.43,230.37,19.99494038]
[1732657658684,20.0,230.41,230.37,19.99494038]
[1732657658863,22.16484038,230.43,230.37,19.99494038]
[1732657659068,22.16484038,230.43,230.36,19.99494038]
[1732657659284,2.1699,230.43,230.37,19.99494038]
[1732657659599,43.34204787,230.48,230.41,19.99494038]
[1732657659766,7.60350749,230.48,230.46,19.99494038]
[1732657659968,7.60350749,230.48,230.47,19.99494038]
[1732657660392,7.60350749,230.48,230.42,19.99494038]
[1732657660977,7.60350749,230.48,230.43,19.99494038]
[1732657661184,7.60350749,230.48,230.44,19.99494038]
[1732657661393,7.60350749,230.48,230.38,4.3406]
[1732657661394,7.60350749,230.48,230.43,19.99494038]
[1732657661798,19.99494038,230.44,230.37,19.99494038]
[1732657661979,20.0,230.45,230.4,19.99494038]
[1732657662383,20.0,230.45,230.39,19.99494038]
[1732657662685,42.16454038,230.45,230.37,19.99494038]
[1732657662998,20.09494038,230.44,230.37,19.99494038]
[1732657663407,19.99494038,230.41,230.34,19.99494038]
[1732657663590,19.99494038,230.41,230.33,19.99494038]
[1732657663790,0.1,230.44,230.32,19.99494038]
[1732657663791,19.99494038,230.39,230.32,19.99494038]
[1732657664107,19.99494038,230.4,230.33,19.99494038]
[1732657665698,22.16504038,230.4,230.33,19.99494038]
[1732657669594,2.1701,230.4,230.34,19.99494038]
[1732657669996,22.16504038,230.4,230.33,19.99494038]
[1732657670200,22.16504038,230.4,230.26,19.99494038]
[1732657670201,19.99494038,230.34,230.26,19.99494038]
[1732657670509,19.99494038,230.34,230.27,19.99494038]
[1732657671118,19.99494038,230.35,230.27,19.99494038]
[1732657671319,22.16564038,230.34,230.27,19.99494038]
[1732657671491,2.1707,230.34,230.28,19.99494038]
[1732657671690,0.1,230.37,230.24,4.3432]
[1732657671691,20.09494038,230.37,230.3,19.99494038]
[1732657671896,16.1697,230.4,230.34,19.99494038]
[1732657672109,16.1697,230.4,230.35,19.99494038]
[1732657672413,26.13954038,230.42,230.35,19.99494038]
[1732657672414,19.99494038,230.42,230.35,19.99494038]
[1732657673198,22.16524038,230.39,230.32,19.99494038]
[1732657673396,19.99494038,230.38,230.31,19.99494038]
[1732657673596,19.99494038,230.37,230.3,19.99494038]
[1732657674706,22.16534038,230.37,230.3,19.99494038]
[1732657677925,5.5249,230.42,230.35,19.99494038]
[1732657677926,20.0,230.39,230.35,19.99494038]
[1732657678103,19.99494038,230.4,230.33,19.99494038]
[1732657678303,19.99494038,230.4,230.32,19.99494038]
[1732657679526,19.99494038,230.39,230.32,19.99494038]
[1732657679919,19.99494038,230.38,230.31,19.99494038]
[1732657680102,20.0,230.42,230.25,10.8577]
[1732657680103,19.99494038,230.39,230.32,19.99494038]
[1732657680303,19.99494038,230.36,230.26,4.3429]
[1732657680504,39.99494038,230.38,230.3,19.99494038]
[1732657680733,19.99494038,230.35,230.27,19.99494038]
[1732657681107,19.99494038,230.35,230.28,19.99494038]
[1732657681306,20.0,230.38,230.23,26.39864038]
[1732657681307,19.99494038,230.36,230.29,19.99494038]
[1732657681615,22.16564038,230.34,230.27,19.99494038]
[1732657682623,19.99494038,230.31,230.24,24.33814038]
[1732657682824,19.99494038,230.33,230.26,19.99494038]
[1732657683026,19.99494038,230.32,230.25,19.99494038]
[1732657683218,19.99494038,230.27,230.2,19.99494038]
[1732657683727,22.16604038,230.3,230.23,19.99494038]
[1732657683913,19.99494038,230.3,230.23,19.99494038]
[1732657684112,20.0,230.29,230.26,19.99494038]
[1732657684522,20.0,230.29,230.24,19.99494038]
[1732657684827,20.0,230.28,230.24,19.99494038]
[1732657685229,20.0,230.28,230.23,19.99494038]
[1732657685428,19.99494038,230.3,230.23,19.99494038]
[1732657685634,22.16604038,230.3,230.23,19.99494038]
[1732657686008,20.0,230.31,230.25,19.99494038]
[1732657686209,19.99494038,230.28,230.21,19.99494038]
[1732657686509,19.99494038,230.27,230.19,19.99494038]
[1732657686933,19.99494038,230.27,230.2,19.99494038]
[1732657687312,19.99494038,230.26,230.18,19.99494038]
[1732657687515,0.1,230.3,230.18,19.99494038]
[1732657687516,19.99494038,230.25,230.18,19.99494038]
[1732657687830,19.99494038,230.27,230.2,19.99494038]
[1732657688135,20.0,230.25,230.21,19.99494038]
[1732657688337,20.09494038,230.29,230.22,19.99494038]
[1732657688517,19.99494038,230.31,230.24,19.99494038]
[1732657688915,19.99494038,230.29,230.22,19.99494038]
[1732657689323,20.09494038,230.31,230.24,19.99494038]
[1732657689517,19.99494038,230.3,230.22,19.99494038]
[1732657690020,19.99494038,230.31,230.16,10.8617]
[1732657690336,33.6011365,230.31,230.24,13.6011365]
[1732657690714,13.6011365,230.26,230.19,13.6011365]
[1732657690919,13.6011365,230.24,230.17,13.6011365]
[1732657691119,13.6011365,230.22,230.15,13.6011365]
[1732657691333,13.6011365,230.24,230.17,13.6011365]
[1732657691733,13.6011365,230.23,230.16,13.6011365]
[1732657691937,15.7726365,230.25,230.17,13.6011365]
[1732657692142,0.1,230.28,230.23,13.6011365]
[1732657692437,20.0,230.27,230.24,13.6011365]
[1732657692649,2.1711,230.3,230.24,13.6011365]
[1732657693221,15.8720365,230.32,230.25,13.6011365]
[1732657693421,15.3721,230.34,230.3,13.6011365]
[1732657693721,13.6011365,230.33,230.26,13.6011365]
[1732657693926,13.6011365,230.32,230.25,13.6011365]
[1732657694740,13.6011365,230.28,230.22,13.6011365]
[1732657694940,13.6011365,230.29,230.22,13.6011365]
[1732657695841,20.0,230.28,230.23,13.6011365]
[1732657696045,15.3721,230.34,230.27,13.6011365]
[1732657696220,2.1704,230.38,230.32,13.6011365]
[1732657696435,6.25,230.4,230.35,13.6011365]
[1732657696436,31.143436,230.4,230.35,13.6011365]
[1732657696626,15.3721,230.4,230.36,13.6011365]
[1732657696834,13.6011365,230.42,230.35,13.6011365]
[1732657697331,13.6011365,230.43,230.36,13.6011365]
[1732657697534,15.8708365,230.44,230.37,13.6011365]
[1732657697840,3.21671674,230.43,230.38,13.6011365]
[1732657698036,15.3721,230.45,230.39,13.6011365]
[1732657698748,17.5417,230.45,230.39,13.6011365]
[1732657698954,17.5417,230.45,230.36,4.3409]
[1732657698955,17.5417,230.45,230.4,13.6011365]
[1732657699357,7.60350749,230.48,230.44,13.6011365]
[1732657699864,7.60350749,230.48,230.47,13.6011365]
[1732657702939,7.60350749,230.48,230.47,37.3780205]
[1732657703143,7.41442083,230.63,230.48,4.3387]
[1732657703345,3.21432367,230.62,230.57,13.6011365]
[1732657703758,9.86723212,230.63,230.57,13.6011365]
[1732657703962,23.46836862,230.63,230.56,13.6011365]
[1732657704165,13.6011365,230.62,230.55,13.6011365]
[1732657704663,13.6011365,230.62,230.54,13.6011365]
[1732657705249,13.6011365,230.6,230.53,13.6011365]
[1732657705642,37.3780205,230.59,230.52,13.6011365]
[1732657707044,2.1684,230.58,230.52,13.6011365]
[1732657708264,2.2684,230.58,230.49,13.6011365]
[1732657708472,13.6011365,230.57,230.51,13.6011365]
[1732657708645,2.2684,230.58,230.5,13.6011365]
[1732657708844,20.0,230.6,230.56,13.6011365]
[1732657709171,7.59923212,230.63,230.59,13.6011365]
[1732657709372,7.59923212,230.63,230.6,13.6011365]
[1732657709544,7.59923212,230.63,230.58,13.6011365]
[1732657709745,7.59923212,230.63,230.57,13.6011365]
[1732657709940,7.59923212,230.63,230.58,13.6011365]
[1732657710162,7.59923212,230.63,230.59,13.6011365]
[1732657710560,9.76713212,230.63,230.57,13.6011365]
[1732657710772,7.59923212,230.63,230.59,13.6011365]
[1732657711847,7.59923212,230.63,230.58,13.6011365]
[1732657712046,7.59923212,230.63,230.57,13.6011365]
[1732657712250,9.76713212,230.63,230.56,13.6011365]
[1732657712449,13.6011365,230.61,230.53,13.6011365]
[1732657713068,13.6011365,230.6,230.52,13.6011365]
[1732657713474,13.6011365,230.58,230.51,13.6011365]
[1732657713651,13.6011365,230.57,230.49,13.6011365]
[1732657713968,20.0,230.56,230.52,13.6011365]
[1732657714547,20.0,230.56,230.49,4.3385]
[1732657714548,20.0,230.56,230.51,13.6011365]
[1732657715269,2.2681,230.62,230.55,13.6011365]
[1732657715572,2.2681,230.62,230.52,13.6011365]
[1732657715573,13.6011365,230.59,230.52,13.6011365]
[1732657715969,13.6011365,230.57,230.5,13.6011365]
[1732657716266,13.6011365,230.56,230.48,13.6011365]
[1732657716567,2.1687,230.55,230.48,13.6011365]
[1732657716870,15.7698365,230.55,230.48,13.6011365]
[1732657717346,2.2684,230.58,230.52,13.6011365]
[1732657717707,30.0529365,230.59,230.54,13.6011365]
[1732657717708,16.4518,230.59,230.54,13.6011365]
[1732657717858,16.4518,230.59,230.53,13.6011365]
[1732657718954,13.6011365,230.58,230.52,13.6011365]
[1732657719173,13.6011365,230.57,230.5,13.6011365]
[1732657719347,13.6011365,230.56,230.49,13.6011365]
[1732657719974,13.6011365,230.57,230.5,13.6011365]
[1732657720754,13.6011365,230.56,230.49,13.6011365]
[1732657720950,13.6011365,230.55,230.48,13.6011365]
[1732657721175,13.6011365,230.53,230.46,13.6011365]
[1732657721493,13.6011365,230.54,230.47,13.6011365]
[1732657721700,13.6011365,230.53,230.47,13.6011365]
[1732657721905,13.6011365,230.54,230.47,13.6011365]
[1732657722477,15.7699365,230.54,230.47,13.6011365]
[1732657722691,2.1688,230.54,230.48,13.6011365]
[1732657722895,15.7699365,230.54,230.47,13.6011365]
[1732657723097,13.6011365,230.52,230.45,13.6011365]
[1732657723799,13.6011365,230.49,230.43,0.91533397]
[1732657723976,13.6011365,230.48,230.43,0.91533397]
[1732657724181,13.6011365,230.49,230.43,0.91533397]
[1732657724680,13.6011365,230.48,230.43,0.91533397]
[1732657724881,15.7704365,230.49,230.43,0.91533397]
[1732657725804,2.1693,230.49,230.43,14.51647047]
[1732657726396,13.6011365,230.48,230.43,0.91533397]
[1732657726701,15.7704365,230.49,230.43,0.91533397]
[1732657727405,13.6011365,230.48,230.43,0.91533397]
[1732657727587,13.6011365,230.46,230.43,0.91533397]
[1732657727788,13.6011365,230.47,230.43,0.91533397]
[1732657728683,15.7706365,230.47,230.43,0.91533397]
[1732657729600,13.6011365,230.45,230.43,0.91533397]
[1732657729805,13.6011365,230.44,230.43,0.91533397]
[1732657729996,20.0,230.4,230.32,13.6011365]
[1732657730204,20.0,230.36,230.26,13.6011365]
[1732657730404,13.6011365,230.32,230.25,17.9440365]
[1732657730592,13.6011365,230.31,230.23,22.3412]
[1732657730788,13.7011365,230.35,230.28,13.6011365]
[1732657731101,20.0,230.34,230.3,13.6011365]
[1732657731308,20.0,230.34,230.29,13.6011365]
[1732657732407,33.6011365,230.34,230.27,13.6011365]
[1732657732586,30.1133365,230.37,230.3,13.6011365]
[1732657732787,5.29366732,230.43,230.32,13.6011365]
[1732657732788,20.0,230.36,230.32,13.6011365]
[1732657733406,20.0,230.38,230.34,13.6011365]
[1732657733809,20.0,230.38,230.33,13.6011365]
[1732657734304,20.0,230.38,230.26,15.2]
[1732657734305,2.1701,230.4,230.34,13.6011365]
[1732657734610,15.8712365,230.4,230.33,13.6011365]
[1732657734805,2.1701,230.4,230.34,13.6011365]
[1732657735107,20.0,230.4,230.36,13.6011365]
[1732657735316,20.0,230.4,230.35,13.6011365]
[1732657735486,20.0,230.4,230.28,13.6011365]
[1732657735487,20.0,230.4,230.36,13.6011365]
[1732657735690,20.0,230.4,230.35,13.6011365]
[1732657735899,16.5122,230.43,230.38,13.6011365]
[1732657736098,16.5122,230.43,230.37,13.6011365]
[1732657737409,32.2831365,230.43,230.36,13.6011365]
[1732657738296,18.682,230.43,230.37,13.6011365]
[1732657739522,32.2831365,230.43,230.36,13.6011365]
[1732657739725,20.0,230.45,230.35,4.3411]
[1732657739911,16.5122,230.49,230.44,13.6011365]
[1732657740238,13.6011365,230.48,230.41,13.6011365]
[1732657740603,13.6011365,230.51,230.44,13.6011365]
[1732657741003,13.6011365,230.49,230.41,13.6011365]
[1732657741223,13.7011365,230.51,230.44,13.6011365]
[1732657741729,13.6011365,230.5,230.41,4.3399]
[1732657742021,20.0,230.48,230.44,13.6011365]
[1732657743219,20.0,230.48,230.41,17.9410365]
[1732657743409,20.0,230.5,230.43,13.6011365]
[1732657743609,20.0,230.48,230.43,13.6011365]
[1732657744008,20.0,230.48,230.41,17.9410365]
[1732657744599,13.6011365,230.46,230.39,13.6011365]
[1732657745532,13.6011365,230.41,230.34,17.9424365]
[1732657745826,13.6011365,230.4,230.33,13.6011365]
[1732657746207,13.6011365,230.39,230.32,13.6011365]
[1732657746402,13.6011365,230.41,230.34,13.6011365]
[1732657746611,13.6011365,230.4,230.33,13.6011365]
[1732657746911,13.6011365,230.41,230.34,13.6011365]
[1732657747527,13.6011365,230.4,230.33,13.6011365]
[1732657747707,13.6011365,230.4,230.32,13.6011365]
[1732657748229,15.7712365,230.41,230.34,13.6011365]
[1732657749319,2.1697,230.44,230.38,13.6011365]
[1732657749525,20.0,230.43,230.39,13.6011365]
[1732657749825,20.0,230.43,230.38,13.6011365]
[1732657750622,15.7709365,230.43,230.36,13.6011365]
[1732657751008,13.6011365,230.42,230.35,13.6011365]
[1732657751209,15.7709365,230.43,230.35,13.6011365]
[1732657751417,13.6011365,230.42,230.32,4.3417]
[1732657751658,13.6011365,230.39,230.32,17.9428365]
[1732657752542,13.6011365,230.37,230.3,13.6011365]
[1732657752859,13.6011365,230.36,230.28,13.6011365]
[1732657753060,13.6011365,230.36,230.29,13.6011365]
[1732657753250,13.7011365,230.38,230.31,13.6011365]
[1732657753838,15.8714365,230.38,230.31,13.6011365]
[1732657754656,15.8714365,230.38,230.3,13.6011365]
[1732657756173,15.8714365,230.38,230.3,17.9432365]
[1732657756364,13.6011365,230.37,230.29,13.6011365]
[1732657757161,13.6011365,230.36,230.29,13.6011365]
[1732657757572,13.6011365,230.36,230.3,4.3421]
[1732657758165,13.6011365,230.39,230.3,4.3421]
[1732657758383,15.7231,230.42,230.36,13.6011365]
[1732657758973,2.1696,230.45,230.3,15.1975]
[1732657759189,13.6011365,230.49,230.42,13.6011365]
[1732657759369,2.1692,230.5,230.45,13.6011365]
[1732657759685,32.4328365,230.52,230.45,13.6011365]
[1732657759864,13.6011365,230.5,230.43,13.6011365]
[1732657760279,13.6011365,230.51,230.44,13.6011365]
[1732657760585,30.2638365,230.52,230.44,13.6011365]